[Event "*** Titled Tuesday Blitz"]
[Site "Chess.com"]
[Date "2020.04.21"]
[Round "7"]
[White "bait_or_mate"]
[Black "Eliwood44"]
[Result "1-0"]
[WhiteElo "2519"]
[BlackElo "2320"]
[TimeControl "180+1"]
[EndTime "11:22:10 PDT"]
[Termination "bait_or_mate won by resignation"]

1. d4 {[%clk 0:03:00.9]} 1... Nf6 {[%clk 0:02:56.4]} 2. c4 {[%clk 0:03:00.3]}
2... e6 {[%clk 0:02:54.2]} 3. Nf3 {[%clk 0:02:55.7]} 3... b6 {[%clk 0:02:51.3]}
4. g3 {[%clk 0:02:55.5]} 4... Ba6 {[%clk 0:02:50.7]} 5. Qc2 {[%clk 0:02:55.1]}
5... Bb4+ {[%clk 0:02:46.6]} 6. Bd2 {[%clk 0:02:53.4]} 6... Qe7 {[%clk
0:02:33.9]} 7. Bg2 {[%clk 0:02:52.9]} 7... Bb7 {[%clk 0:02:26.1]} 8. O-O {[%clk
0:02:50.1]} 8... Be4 {[%clk 0:02:22.4]} 9. Qc1 {[%clk 0:02:47]} 9... O-O {[%clk
0:02:17.9]} 10. Nc3 {[%clk 0:02:34.6]} 10... Bxc3 {[%clk 0:02:01.3]} 11. Bxc3
{[%clk 0:02:34.1]} 11... Nc6 {[%clk 0:01:57.5]} 12. Rd1 {[%clk 0:02:27.2]} 12...
d5 {[%clk 0:01:56.2]} 13. b3 {[%clk 0:02:21.1]} 13... Rfd8 {[%clk 0:01:52.7]}
14. Qf4 {[%clk 0:02:16.6]} 14... Rac8 {[%clk 0:01:44.8]} 15. Rac1 {[%clk
0:02:04.7]} 15... a5 {[%clk 0:01:42.4]} 16. h3 {[%clk 0:01:53.3]} 16... Nb4
{[%clk 0:01:40]} 17. Qd2 {[%clk 0:01:43.1]} 17... c6 {[%clk 0:01:27.1]} 18. a3
{[%clk 0:01:36]} 18... Na6 {[%clk 0:01:24]} 19. Qb2 {[%clk 0:01:33.3]} 19... h6
{[%clk 0:01:15.4]} 20. Nd2 {[%clk 0:01:22.7]} 20... Bxg2 {[%clk 0:01:14]} 21.
Kxg2 {[%clk 0:01:23.6]} 21... Nc7 {[%clk 0:01:09]} 22. e3 {[%clk 0:01:21.5]}
22... Nce8 {[%clk 0:01:04.3]} 23. b4 {[%clk 0:01:17.8]} 23... axb4 {[%clk
0:01:01.9]} 24. Bxb4 {[%clk 0:01:09.9]} 24... c5 {[%clk 0:01:00.3]} 25. dxc5
{[%clk 0:01:05.3]} 25... bxc5 {[%clk 0:00:59.9]} 26. Ba5 {[%clk 0:01:04.9]}
26... Rd7 {[%clk 0:00:55.9]} 27. Nf3 {[%clk 0:01:02.6]} 27... Nd6 {[%clk
0:00:50]} 28. cxd5 {[%clk 0:00:59.7]} 28... exd5 {[%clk 0:00:46.9]} 29. Bc3
{[%clk 0:00:57.8]} 29... Nde4 {[%clk 0:00:44.7]} 30. a4 {[%clk 0:00:49.7]} 30...
Nxc3 {[%clk 0:00:41.4]} 31. Qxc3 {[%clk 0:00:40.1]} 31... Ne4 {[%clk 0:00:41.5]}
32. Qb3 {[%clk 0:00:37.1]} 32... Qe6 {[%clk 0:00:35.4]} 33. Nd4 {[%clk
0:00:35.2]} 33... Qf6 {[%clk 0:00:25.1]} 34. f3 {[%clk 0:00:29.3]} 34... Nd6
{[%clk 0:00:14.5]} 35. Qxd5 {[%clk 0:00:23.9]} 35... cxd4 {[%clk 0:00:06.4]} 36.
Rxc8+ {[%clk 0:00:23.6]} 36... Nxc8 {[%clk 0:00:07.3]} 37. Qxd7 {[%clk
0:00:23.7]} 37... Nd6 {[%clk 0:00:05.7]} 38. Rxd4 {[%clk 0:00:21.9]} 38... Nf5
{[%clk 0:00:05.3]} 39. Qd8+ {[%clk 0:00:22.2]} 39... Kh7 {[%clk 0:00:04.6]} 40.
Qxf6 {[%clk 0:00:21.5]} 40... gxf6 {[%clk 0:00:05.1]} 41. Rd3 {[%clk 0:00:20.1]}
1-0

[Event "*** Titled Tuesday Blitz"]
[Site "Chess.com"]
[Date "2020.04.21"]
[Round "7"]
[White "ShieldingOff"]
[Black "ferch1ni"]
[Result "0-1"]
[WhiteElo "2018"]
[BlackElo "2315"]
[TimeControl "180+1"]
[EndTime "11:22:10 PDT"]
[Termination "ferch1ni won on time"]

1. Nf3 {[%clk 0:03:00.9]} 1... d5 {[%clk 0:02:51.3]} 2. g3 {[%clk 0:03:00.3]}
2... Nc6 {[%clk 0:02:51.2]} 3. Bg2 {[%clk 0:03:00.2]} 3... e5 {[%clk 0:02:51.9]}
4. d3 {[%clk 0:02:59.9]} 4... Be6 {[%clk 0:02:52.5]} 5. O-O {[%clk 0:02:59.8]}
5... Nge7 {[%clk 0:02:53]} 6. c3 {[%clk 0:02:58.9]} 6... h6 {[%clk 0:02:53]} 7.
e4 {[%clk 0:02:58.9]} 7... g5 {[%clk 0:02:52.4]} 8. Re1 {[%clk 0:02:50.6]} 8...
Bg7 {[%clk 0:02:52.7]} 9. Nbd2 {[%clk 0:02:42.2]} 9... O-O {[%clk 0:02:51.5]}
10. Nf1 {[%clk 0:02:16.7]} 10... Qd7 {[%clk 0:02:51.1]} 11. Qc2 {[%clk
0:02:15.3]} 11... Rad8 {[%clk 0:02:51.2]} 12. Be3 {[%clk 0:02:12.1]} 12... a5
{[%clk 0:02:47.3]} 13. Rad1 {[%clk 0:02:01.4]} 13... d4 {[%clk 0:02:46.7]} 14.
cxd4 {[%clk 0:01:52.9]} 14... exd4 {[%clk 0:02:43.2]} 15. Bd2 {[%clk 0:01:52.5]}
15... Nb4 {[%clk 0:02:36.2]} 16. Bxb4 {[%clk 0:01:48.4]} 16... axb4 {[%clk
0:02:37.1]} 17. a3 {[%clk 0:01:44.1]} 17... Nc6 {[%clk 0:02:21.9]} 18. N1d2
{[%clk 0:01:37.8]} 18... Ra8 {[%clk 0:02:21.4]} 19. Ra1 {[%clk 0:01:28.8]} 19...
Ra6 {[%clk 0:02:14.2]} 20. a4 {[%clk 0:00:55.3]} 20... b3 {[%clk 0:02:02.9]} 21.
Nxb3 {[%clk 0:00:48.2]} 21... Nb4 {[%clk 0:02:03.4]} 22. Qd2 {[%clk 0:00:31.1]}
22... Bxb3 {[%clk 0:01:51.4]} 23. Qxb4 {[%clk 0:00:30.4]} 23... Bxa4 {[%clk
0:01:51.3]} 24. Nd2 {[%clk 0:00:19.8]} 24... Qb5 {[%clk 0:01:12.1]} 25. Qxb5
{[%clk 0:00:17.3]} 25... Bxb5 {[%clk 0:01:13]} 26. Rxa6 {[%clk 0:00:15.7]} 26...
Bxa6 {[%clk 0:01:10.7]} 27. Bf1 {[%clk 0:00:15.4]} 27... Rd8 {[%clk 0:01:06.4]}
28. Rc1 {[%clk 0:00:14.8]} 28... c6 {[%clk 0:01:05.2]} 29. Nb3 {[%clk 0:00:13]}
29... Bb5 {[%clk 0:00:47.4]} 30. Nc5 {[%clk 0:00:10.3]} 30... b6 {[%clk
0:00:46.9]} 31. Nb3 {[%clk 0:00:09.9]} 31... Ra8 {[%clk 0:00:42.2]} 32. Nd2
{[%clk 0:00:04.4]} 32... Ra2 {[%clk 0:00:38.8]} 33. Nc4 {[%clk 0:00:02.2]} 33...
Bxc4 {[%clk 0:00:33.8]} 34. Rxc4 {[%clk 0:00:02]} 34... c5 {[%clk 0:00:33.7]}
35. Rc2 {[%clk 0:00:02.1]} 35... Kf8 {[%clk 0:00:26.2]} 36. Bh3 {[%clk
0:00:01.6]} 36... Ke7 {[%clk 0:00:25.2]} 37. Bc8 {[%clk 0:00:01.2]} 37... Kd6
{[%clk 0:00:22.1]} 38. Bb7 {[%clk 0:00:01.1]} 38... Be5 {[%clk 0:00:15.8]} 0-1

[Event "*** Titled Tuesday Blitz"]
[Site "Chess.com"]
[Date "2020.04.21"]
[Round "7"]
[White "YaWaleriy"]
[Black "nfds"]
[Result "0-1"]
[WhiteElo "2270"]
[BlackElo "2545"]
[TimeControl "180+1"]
[EndTime "11:22:11 PDT"]
[Termination "nfds won on time"]

1. d4 {[%clk 0:03:00.9]} 1... d5 {[%clk 0:02:58]} 2. Nf3 {[%clk 0:03:00.3]} 2...
Nf6 {[%clk 0:02:52]} 3. c4 {[%clk 0:03:00.1]} 3... e6 {[%clk 0:02:40.6]} 4. Nc3
{[%clk 0:02:59.3]} 4... Be7 {[%clk 0:02:26.6]} 5. Bf4 {[%clk 0:02:58.4]} 5...
O-O {[%clk 0:02:21.8]} 6. e3 {[%clk 0:02:58.8]} 6... Nbd7 {[%clk 0:02:11.2]} 7.
c5 {[%clk 0:02:50.5]} 7... c6 {[%clk 0:02:08]} 8. Bd3 {[%clk 0:02:46.1]} 8...
Nh5 {[%clk 0:02:04.3]} 9. O-O {[%clk 0:02:44.8]} 9... b6 {[%clk 0:02:02.6]} 10.
b4 {[%clk 0:02:43.5]} 10... a5 {[%clk 0:02:01.6]} 11. a3 {[%clk 0:02:43.7]}
11... Ba6 {[%clk 0:01:44.8]} 12. Bxa6 {[%clk 0:02:24.4]} 12... Rxa6 {[%clk
0:01:45.7]} 13. Ne5 {[%clk 0:02:24.1]} 13... Nxe5 {[%clk 0:01:41]} 14. Bxe5
{[%clk 0:02:23.4]} 14... Nf6 {[%clk 0:01:36.7]} 15. Qd3 {[%clk 0:02:14]} 15...
Qa8 {[%clk 0:01:23.2]} 16. b5 {[%clk 0:02:11.6]} 16... cxb5 {[%clk 0:01:21.6]}
17. Nxb5 {[%clk 0:02:11.4]} 17... Ne8 {[%clk 0:01:07.3]} 18. Rfc1 {[%clk
0:01:58]} 18... bxc5 {[%clk 0:01:06]} 19. dxc5 {[%clk 0:01:57.7]} 19... Rc6
{[%clk 0:01:05.7]} 20. Bd4 {[%clk 0:01:49.8]} 20... Nc7 {[%clk 0:00:56.9]} 21.
a4 {[%clk 0:01:45.8]} 21... Na6 {[%clk 0:00:54.5]} 22. Qc3 {[%clk 0:01:26.3]}
22... Nxc5 {[%clk 0:00:44.8]} 23. Bxg7 {[%clk 0:01:16.7]} 23... Rfc8 {[%clk
0:00:44.7]} 24. Bh6 {[%clk 0:01:00.7]} 24... f6 {[%clk 0:00:36.5]} 25. Nd4
{[%clk 0:00:46.6]} 25... Nxa4 {[%clk 0:00:29.9]} 26. Qd2 {[%clk 0:00:30.9]}
26... Rxc1+ {[%clk 0:00:28.4]} 27. Rxc1 {[%clk 0:00:31]} 27... Kf7 {[%clk
0:00:27]} 28. Ra1 {[%clk 0:00:28.5]} 28... Nc3 {[%clk 0:00:21.2]} 29. f3 {[%clk
0:00:20.3]} 29... Bb4 {[%clk 0:00:18.8]} 30. Qf2 {[%clk 0:00:19.6]} 30... Rg8
{[%clk 0:00:17]} 31. Qh4 {[%clk 0:00:19]} 31... Rg6 {[%clk 0:00:16.4]} 32. Qh3
{[%clk 0:00:17.9]} 32... Qc8 {[%clk 0:00:14.5]} 33. Bf4 {[%clk 0:00:12.5]} 33...
h6 {[%clk 0:00:11.1]} 34. g4 {[%clk 0:00:10]} 34... e5 {[%clk 0:00:08.4]} 35.
Nf5 {[%clk 0:00:07.2]} 35... Qxf5 {[%clk 0:00:07.4]} 0-1

[Event "*** Titled Tuesday Blitz"]
[Site "Chess.com"]
[Date "2020.04.21"]
[Round "7"]
[White "talaicito"]
[Black "CalinGheorghiu"]
[Result "1-0"]
[WhiteElo "2299"]
[BlackElo "2458"]
[TimeControl "180+1"]
[EndTime "11:22:11 PDT"]
[Termination "talaicito won by resignation"]

1. d4 {[%clk 0:03:00.9]} 1... Nf6 {[%clk 0:02:54.5]} 2. Nc3 {[%clk 0:03:00]}
2... e6 {[%clk 0:02:51.3]} 3. Bf4 {[%clk 0:03:00]} 3... d5 {[%clk 0:02:50.4]} 4.
e3 {[%clk 0:02:58.9]} 4... Bd6 {[%clk 0:02:47.5]} 5. Nf3 {[%clk 0:02:59]} 5...
O-O {[%clk 0:02:45.8]} 6. Ne5 {[%clk 0:02:58.7]} 6... c5 {[%clk 0:02:45.4]} 7.
Bd3 {[%clk 0:02:55.7]} 7... Nc6 {[%clk 0:02:44.3]} 8. O-O {[%clk 0:02:22]} 8...
a6 {[%clk 0:02:41.7]} 9. Nxc6 {[%clk 0:02:16.4]} 9... bxc6 {[%clk 0:02:41]} 10.
dxc5 {[%clk 0:02:09.4]} 10... Bxf4 {[%clk 0:02:31.2]} 11. exf4 {[%clk
0:02:09.5]} 11... Qa5 {[%clk 0:02:31.6]} 12. Ne2 {[%clk 0:02:03.2]} 12... Qxc5
{[%clk 0:02:31]} 13. Nd4 {[%clk 0:02:03]} 13... Rb8 {[%clk 0:02:30]} 14. Rb1
{[%clk 0:01:55.6]} 14... a5 {[%clk 0:02:23.2]} 15. c3 {[%clk 0:01:53.9]} 15...
Qb6 {[%clk 0:02:20]} 16. Qe2 {[%clk 0:01:45.2]} 16... c5 {[%clk 0:02:18.7]} 17.
Nf3 {[%clk 0:01:41.8]} 17... c4 {[%clk 0:02:17.4]} 18. Bc2 {[%clk 0:01:40.3]}
18... d4 {[%clk 0:02:15.3]} 19. Nxd4 {[%clk 0:01:33.9]} 19... Bb7 {[%clk
0:02:15.3]} 20. Qxc4 {[%clk 0:01:21.8]} 20... Rbc8 {[%clk 0:02:11.4]} 21. Qb5
{[%clk 0:01:20.1]} 21... Qc7 {[%clk 0:02:10.7]} 22. Qe5 {[%clk 0:01:12.3]} 22...
Qb6 {[%clk 0:02:01]} 23. f5 {[%clk 0:01:08.2]} 23... Rc5 {[%clk 0:01:56.7]} 24.
Qg3 {[%clk 0:00:58.5]} 24... e5 {[%clk 0:01:52.1]} 25. Nf3 {[%clk 0:00:54.8]}
25... e4 {[%clk 0:01:32.4]} 26. Nd4 {[%clk 0:00:55]} 26... Re8 {[%clk
0:01:32.6]} 27. Rfe1 {[%clk 0:00:53.6]} 27... Rce5 {[%clk 0:01:17.9]} 28. h3
{[%clk 0:00:52.1]} 28... Bc8 {[%clk 0:01:06]} 29. Ba4 {[%clk 0:00:51.7]} 29...
R8e7 {[%clk 0:01:00.1]} 30. Nc6 {[%clk 0:00:51.4]} 30... Qc5 {[%clk 0:00:57.6]}
31. Nxe5 {[%clk 0:00:46.4]} 31... Rxe5 {[%clk 0:00:57.4]} 32. Rbd1 {[%clk
0:00:46.5]} 32... h5 {[%clk 0:00:54.3]} 33. Rd8+ {[%clk 0:00:45.3]} 33... Kh7
{[%clk 0:00:54.2]} 34. Qe3 {[%clk 0:00:45.6]} 34... Qc7 {[%clk 0:00:52.2]} 35.
Red1 {[%clk 0:00:43.3]} 35... Bxf5 {[%clk 0:00:50.5]} 36. Qf4 {[%clk 0:00:41.5]}
36... Qc5 {[%clk 0:00:47.8]} 37. Bb3 {[%clk 0:00:38.9]} 37... Bg6 {[%clk
0:00:46.4]} 38. Qe3 {[%clk 0:00:30.6]} 38... Qc7 {[%clk 0:00:40.2]} 39. Ra8
{[%clk 0:00:27.9]} 39... Ne8 {[%clk 0:00:32.9]} 40. Rdd8 {[%clk 0:00:26.4]}
40... f5 {[%clk 0:00:32.8]} 41. Ba4 {[%clk 0:00:25.3]} 41... Re7 {[%clk
0:00:27.2]} 42. Bxe8 {[%clk 0:00:23.6]} 42... f4 {[%clk 0:00:23.5]} 43. Bxg6+
{[%clk 0:00:23]} 43... Kxg6 {[%clk 0:00:24.4]} 44. Qd4 {[%clk 0:00:18.7]} 44...
e3 {[%clk 0:00:21]} 45. Rd6+ {[%clk 0:00:18.4]} 45... Kh7 {[%clk 0:00:12.8]} 46.
Qd3+ {[%clk 0:00:18.3]} 1-0

[Event "*** Titled Tuesday Blitz"]
[Site "Chess.com"]
[Date "2020.04.21"]
[Round "7"]
[White "afgano29"]
[Black "pooh2012"]
[Result "1-0"]
[WhiteElo "2654"]
[BlackElo "2487"]
[TimeControl "180+1"]
[EndTime "11:22:14 PDT"]
[Termination "afgano29 won by resignation"]

1. e4 {[%clk 0:03:00.9]} 1... d5 {[%clk 0:02:57.3]} 2. exd5 {[%clk 0:03:00.6]}
2... Nf6 {[%clk 0:02:57.1]} 3. Bb5+ {[%clk 0:02:59.1]} 3... Nbd7 {[%clk
0:02:56.3]} 4. d4 {[%clk 0:02:58.4]} 4... a6 {[%clk 0:02:50.9]} 5. Be2 {[%clk
0:02:57.7]} 5... Nxd5 {[%clk 0:02:49.4]} 6. c4 {[%clk 0:02:56.3]} 6... N5f6
{[%clk 0:02:49.4]} 7. Nf3 {[%clk 0:02:56.5]} 7... e6 {[%clk 0:02:42]} 8. O-O
{[%clk 0:02:56.1]} 8... Be7 {[%clk 0:02:40.4]} 9. Nc3 {[%clk 0:02:55.4]} 9...
O-O {[%clk 0:02:40.1]} 10. h3 {[%clk 0:02:49.9]} 10... c5 {[%clk 0:02:38.5]} 11.
Be3 {[%clk 0:02:42.7]} 11... b6 {[%clk 0:02:32.5]} 12. Ne5 {[%clk 0:02:30.4]}
12... Bb7 {[%clk 0:02:11.6]} 13. Bf3 {[%clk 0:02:29.4]} 13... Qc7 {[%clk
0:02:07.8]} 14. Bf4 {[%clk 0:02:17.1]} 14... Bxf3 {[%clk 0:01:24]} 15. Qxf3
{[%clk 0:02:18]} 15... cxd4 {[%clk 0:01:24.2]} 16. Ng6 {[%clk 0:02:15.2]} 16...
Bd6 {[%clk 0:01:09.4]} 17. Bxd6 {[%clk 0:02:10]} 17... Qxd6 {[%clk 0:01:10.3]}
18. Nxf8 {[%clk 0:02:08.9]} 18... Rxf8 {[%clk 0:01:09.4]} 19. Ne4 {[%clk
0:02:02.6]} 19... Nxe4 {[%clk 0:01:08.6]} 20. Qxe4 {[%clk 0:02:03.5]} 20... Nc5
{[%clk 0:01:08.4]} 21. Qf3 {[%clk 0:01:59.4]} 21... a5 {[%clk 0:01:05.1]} 22. b3
{[%clk 0:01:58.3]} 22... e5 {[%clk 0:01:04]} 23. Rad1 {[%clk 0:01:52.2]} 23...
e4 {[%clk 0:00:59.9]} 24. Qf5 {[%clk 0:01:47.6]} 24... g6 {[%clk 0:00:56.1]} 25.
Qg5 {[%clk 0:01:32.6]} 25... f5 {[%clk 0:00:52.2]} 26. Rd2 {[%clk 0:01:30.8]}
26... Ne6 {[%clk 0:00:49]} 27. Qh4 {[%clk 0:01:27.1]} 27... d3 {[%clk
0:00:37.3]} 28. Re1 {[%clk 0:01:22.5]} 28... Nc5 {[%clk 0:00:28.5]} 29. Qg5
{[%clk 0:01:15.5]} 29... f4 {[%clk 0:00:27.4]} 30. h4 {[%clk 0:01:00.9]} 30...
Kg7 {[%clk 0:00:26.4]} 31. h5 {[%clk 0:00:58.4]} 31... Rf5 {[%clk 0:00:25.7]}
32. h6+ {[%clk 0:00:55.2]} 32... Kf7 {[%clk 0:00:25.8]} 33. Qg4 {[%clk
0:00:53.8]} 33... Qd4 {[%clk 0:00:25.7]} 34. Qh3 {[%clk 0:00:46.2]} 34... Ne6
{[%clk 0:00:23.8]} 35. Rdd1 {[%clk 0:00:38.1]} 35... Rh5 {[%clk 0:00:21.4]} 36.
Qg4 {[%clk 0:00:36]} 36... Rg5 {[%clk 0:00:21.4]} 37. Qh4 {[%clk 0:00:35.5]}
37... Re5 {[%clk 0:00:07.4]} 38. Qg4 {[%clk 0:00:34.3]} 38... e3 {[%clk
0:00:07.6]} 39. fxe3 {[%clk 0:00:33.8]} 39... Rxe3 {[%clk 0:00:07.8]} 40. Kh2
{[%clk 0:00:30.8]} 40... d2 {[%clk 0:00:04.2]} 41. Rf1 {[%clk 0:00:30.8]} 41...
Re5 {[%clk 0:00:02.9]} 42. Rf3 {[%clk 0:00:26.5]} 42... Rh5+ {[%clk 0:00:03]}
43. Rh3 {[%clk 0:00:26.6]} 43... Rg5 {[%clk 0:00:03.6]} 44. Qe2 {[%clk
0:00:24.4]} 44... Qe3 {[%clk 0:00:02.3]} 45. Rxe3 {[%clk 0:00:22.8]} 1-0

[Event "*** Titled Tuesday Blitz"]
[Site "Chess.com"]
[Date "2020.04.21"]
[Round "7"]
[White "Omk124"]
[Black "Vesper2018"]
[Result "1-0"]
[WhiteElo "2375"]
[BlackElo "1998"]
[TimeControl "180+1"]
[EndTime "11:22:14 PDT"]
[Termination "Omk124 won on time"]

1. e4 {[%clk 0:03:00.9]} 1... c5 {[%clk 0:02:59.8]} 2. Nf3 {[%clk 0:03:00.9]}
2... d6 {[%clk 0:03:00.2]} 3. d4 {[%clk 0:03:01.5]} 3... cxd4 {[%clk 0:03:00.2]}
4. Nxd4 {[%clk 0:03:02.4]} 4... Nf6 {[%clk 0:03:00.6]} 5. Nc3 {[%clk 0:03:02.7]}
5... a6 {[%clk 0:03:01.1]} 6. g3 {[%clk 0:03:03.1]} 6... e5 {[%clk 0:02:59.7]}
7. Nde2 {[%clk 0:03:02.1]} 7... Nbd7 {[%clk 0:02:58.2]} 8. a4 {[%clk 0:03:01.9]}
8... b6 {[%clk 0:02:57.3]} 9. Bg2 {[%clk 0:03:02.1]} 9... Bb7 {[%clk 0:02:57.1]}
10. O-O {[%clk 0:03:02]} 10... Nc5 {[%clk 0:02:53.1]} 11. Bg5 {[%clk 0:02:55]}
11... Be7 {[%clk 0:02:49.6]} 12. Bxf6 {[%clk 0:02:51.8]} 12... Bxf6 {[%clk
0:02:49.4]} 13. h3 {[%clk 0:02:52.6]} 13... O-O {[%clk 0:02:45.1]} 14. Nd5
{[%clk 0:02:52.3]} 14... g6 {[%clk 0:02:33.8]} 15. Nec3 {[%clk 0:02:49.1]} 15...
Bg7 {[%clk 0:02:32.9]} 16. Qd2 {[%clk 0:02:45.8]} 16... Rc8 {[%clk 0:02:28.8]}
17. Rad1 {[%clk 0:02:44.5]} 17... Ne6 {[%clk 0:02:23.4]} 18. Na2 {[%clk
0:02:34.1]} 18... b5 {[%clk 0:02:01]} 19. axb5 {[%clk 0:02:32.7]} 19... axb5
{[%clk 0:02:01.3]} 20. c3 {[%clk 0:02:32.7]} 20... Nc5 {[%clk 0:01:51.6]} 21.
Nab4 {[%clk 0:02:29.8]} 21... f5 {[%clk 0:01:47.3]} 22. exf5 {[%clk 0:02:29.7]}
22... gxf5 {[%clk 0:01:47.4]} 23. Rfe1 {[%clk 0:02:23.5]} 23... Kh8 {[%clk
0:01:34.3]} 24. f4 {[%clk 0:02:11.1]} 24... e4 {[%clk 0:01:20.8]} 25. Ne3 {[%clk
0:02:10.3]} 25... Rf6 {[%clk 0:01:15.2]} 26. Kh2 {[%clk 0:02:06.2]} 26... Qf8
{[%clk 0:01:09]} 27. Qe2 {[%clk 0:02:01.7]} 27... Qe8 {[%clk 0:01:02.6]} 28.
Nec2 {[%clk 0:01:55.8]} 28... Nb3 {[%clk 0:00:45.6]} 29. Na3 {[%clk 0:01:49.9]}
29... Rc5 {[%clk 0:00:44.6]} 30. Qc2 {[%clk 0:01:45.8]} 30... Qg8 {[%clk
0:00:44]} 31. Bf1 {[%clk 0:01:36.9]} 31... Rg6 {[%clk 0:00:43.4]} 32. Qf2 {[%clk
0:01:20.5]} 32... Qe8 {[%clk 0:00:34.7]} 33. h4 {[%clk 0:01:11]} 33... Bf6
{[%clk 0:00:33.3]} 34. Rxd6 {[%clk 0:01:01.1]} 34... Be7 {[%clk 0:00:26.5]} 35.
Rxg6 {[%clk 0:01:00.7]} 35... Qxg6 {[%clk 0:00:23.7]} 36. Bxb5 {[%clk
0:00:54.8]} 36... Rc8 {[%clk 0:00:19.9]} 37. Rd1 {[%clk 0:00:51.5]} 37... Nc5
{[%clk 0:00:19.1]} 38. Nc4 {[%clk 0:00:47.2]} 38... e3 {[%clk 0:00:16.5]} 39.
Qxe3 {[%clk 0:00:45.7]} 39... Ne4 {[%clk 0:00:16.9]} 40. Ne5 {[%clk 0:00:44.3]}
40... Qg7 {[%clk 0:00:17]} 41. Rd7 {[%clk 0:00:40.7]} 41... Rg8 {[%clk 0:00:13]}
42. Rxb7 {[%clk 0:00:38.6]} 42... Nxg3 {[%clk 0:00:13.3]} 43. Rxe7 {[%clk
0:00:30.7]} 43... Qxe7 {[%clk 0:00:04.5]} 44. Ng6+ {[%clk 0:00:30.5]} 44... Rxg6
{[%clk 0:00:04.4]} 45. Qxe7 {[%clk 0:00:30.9]} 1-0

[Event "*** Titled Tuesday Blitz"]
[Site "Chess.com"]
[Date "2020.04.21"]
[Round "7"]
[White "ehrenfeld"]
[Black "fidezivkovic"]
[Result "0-1"]
[WhiteElo "2435"]
[BlackElo "2287"]
[TimeControl "180+1"]
[EndTime "11:22:14 PDT"]
[Termination "fidezivkovic won by resignation"]

1. e4 {[%clk 0:03:00.9]} 1... c5 {[%clk 0:02:59.4]} 2. d3 {[%clk 0:03:00.5]}
2... Nc6 {[%clk 0:02:55.7]} 3. f4 {[%clk 0:03:00.4]} 3... g6 {[%clk 0:02:53.2]}
4. Nf3 {[%clk 0:03:00.4]} 4... Bg7 {[%clk 0:02:52.1]} 5. Be2 {[%clk 0:03:00.9]}
5... d6 {[%clk 0:02:45.2]} 6. O-O {[%clk 0:03:01.1]} 6... e6 {[%clk 0:02:39.1]}
7. c3 {[%clk 0:03:00.2]} 7... Nge7 {[%clk 0:02:35.4]} 8. Be3 {[%clk 0:02:59.8]}
8... b6 {[%clk 0:02:31.6]} 9. d4 {[%clk 0:02:57.7]} 9... O-O {[%clk 0:02:27.3]}
10. a3 {[%clk 0:02:56.9]} 10... Bb7 {[%clk 0:02:19.7]} 11. Bd3 {[%clk
0:02:56.1]} 11... Rc8 {[%clk 0:02:12.8]} 12. Nbd2 {[%clk 0:02:55]} 12... Qd7
{[%clk 0:01:58.8]} 13. Qe2 {[%clk 0:02:48.9]} 13... f5 {[%clk 0:01:48.9]} 14.
dxc5 {[%clk 0:02:20.4]} 14... bxc5 {[%clk 0:01:45.3]} 15. Rad1 {[%clk
0:02:18.5]} 15... Kh8 {[%clk 0:01:34.1]} 16. Nc4 {[%clk 0:02:00]} 16... fxe4
{[%clk 0:01:33.1]} 17. Bxe4 {[%clk 0:01:59.4]} 17... d5 {[%clk 0:01:32.2]} 18.
Nce5 {[%clk 0:01:44.2]} 18... Nxe5 {[%clk 0:01:27.3]} 19. Nxe5 {[%clk
0:01:44.3]} 19... Qc7 {[%clk 0:01:25.9]} 20. Bb1 {[%clk 0:01:39.5]} 20... Nf5
{[%clk 0:01:23.7]} 21. Bf2 {[%clk 0:01:34.7]} 21... d4 {[%clk 0:01:14.4]} 22. g4
{[%clk 0:01:16.3]} 22... Bxe5 {[%clk 0:01:02.3]} 23. Qxe5+ {[%clk 0:01:08.3]}
23... Qxe5 {[%clk 0:01:01.3]} 24. fxe5 {[%clk 0:01:08.1]} 24... Ne3 {[%clk
0:00:48]} 25. Bxe3 {[%clk 0:01:06.5]} 25... dxe3 {[%clk 0:00:46.4]} 26. Rde1
{[%clk 0:00:55.1]} 26... Rxf1+ {[%clk 0:00:40.9]} 27. Kxf1 {[%clk 0:00:49.9]}
27... Ba6+ {[%clk 0:00:38.3]} 28. Kg2 {[%clk 0:00:49.5]} 28... e2 {[%clk
0:00:37.3]} 29. Be4 {[%clk 0:00:47.5]} 29... Rd8 {[%clk 0:00:34.5]} 30. Kf2
{[%clk 0:00:44.8]} 30... Rd2 {[%clk 0:00:30.4]} 31. b4 {[%clk 0:00:44.1]} 31...
Ra2 {[%clk 0:00:25.1]} 32. bxc5 {[%clk 0:00:41.3]} 32... Rxa3 {[%clk 0:00:24.6]}
33. Rc1 {[%clk 0:00:39]} 33... Ra4 {[%clk 0:00:22]} 34. c4 {[%clk 0:00:37.4]}
34... Bxc4 {[%clk 0:00:17.1]} 35. c6 {[%clk 0:00:36.3]} 35... Ba6 {[%clk
0:00:16.4]} 36. c7 {[%clk 0:00:35.8]} 36... Rxe4 {[%clk 0:00:15.2]} 37. c8=Q+
{[%clk 0:00:34]} 37... Bxc8 {[%clk 0:00:14.5]} 38. Rxc8+ {[%clk 0:00:33.8]}
38... Kg7 {[%clk 0:00:13.6]} 39. Rc7+ {[%clk 0:00:34]} 39... Kg8 {[%clk
0:00:12.5]} 40. g5 {[%clk 0:00:20.1]} 40... Rxe5 {[%clk 0:00:11.5]} 41. h4
{[%clk 0:00:20.1]} 41... e1=Q+ {[%clk 0:00:10.1]} 0-1